fUSD/lending_fUSD_20260531
["ID","MTS","AMOUNT","RATE_DAILY","PERIOD"]
[423506537,1780174255000,-300.0,0.00039178,120]
[423506552,1780174255000,-151.0,0.00039199,45]
[423506554,1780174255000,-152.0,0.00039199,45]
[423506556,1780174255000,-151.0,0.00039199,45]
[423506555,1780174255000,-599.60298507,0.00039199,45]
[423506553,1780174255000,-500.0,0.00039199,45]
[423506564,1780174255000,-504.26578318,0.000392,2]
[423506558,1780174255000,-252.48,0.000392,45]
[423506562,1780174255000,-937.26492261,0.000392,30]
[423506559,1780174255000,-401.902853,0.000392,45]
[423506560,1780174255000,-200.0,0.000392,16]
[423506557,1780174255000,-507.217147,0.000392,45]
[423506561,1780174255000,-413.76,0.000392,45]
[423506565,1780174255000,-214.77133748,0.00039203,30]
[423506506,1780174255000,-300.0,0.00039178,120]
[423506563,1780174255000,-200.0,0.000392,10]
[423506536,1780174255000,-300.0,0.00039178,120]
[423506566,1780174255000,-185.02695778,0.00039203,30]
[423506535,1780174255000,-300.0,0.00039178,120]
[423506534,1780174255000,-300.0,0.00039178,120]
[423506504,1780174255000,-300.0,0.00039178,120]
[423506511,1780174255000,-300.0,0.00039178,120]
[423506512,1780174255000,-300.0,0.00039178,120]
[423506507,1780174255000,-300.0,0.00039178,120]
[423506505,1780174255000,-300.0,0.00039178,120]
[423506508,1780174255000,-300.0,0.00039178,120]
[423506509,1780174255000,-300.0,0.00039178,120]
[423506515,1780174255000,-300.0,0.00039178,120]
[423506514,1780174255000,-300.0,0.00039178,120]
[423506523,1780174255000,-300.0,0.00039178,120]
[423506516,1780174255000,-300.0,0.00039178,120]
[423506524,1780174255000,-300.0,0.00039178,120]
[423506517,1780174255000,-300.0,0.00039178,120]
[423506502,1780174255000,-300.0,0.00039178,120]
[423506522,1780174255000,-300.0,0.00039178,120]
[423506532,1780174255000,-300.0,0.00039178,120]
[423506531,1780174255000,-300.0,0.00039178,120]
[423506530,1780174255000,-300.0,0.00039178,120]
[423506527,1780174255000,-300.0,0.00039178,120]
[423506518,1780174255000,-300.0,0.00039178,120]
[423506538,1780174255000,-300.0,0.00039178,120]
[423506529,1780174255000,-300.0,0.00039178,120]
[423506528,1780174255000,-300.0,0.00039178,120]
[423506520,1780174255000,-300.0,0.00039178,120]
[423506521,1780174255000,-300.0,0.00039178,120]
[423506519,1780174255000,-300.0,0.00039178,120]
[423506526,1780174255000,-300.0,0.00039178,120]
[423506525,1780174255000,-300.0,0.00039178,120]
[423506539,1780174255000,-300.0,0.00039178,120]
[423506605,1780174256000,-755.0,0.00039204,30]
[423506609,1780174256000,-755.0,0.00039204,30]
[423506612,1780174256000,-755.0,0.00039204,30]
[423506613,1780174256000,-755.0,0.00039204,30]
[423506607,1780174256000,-755.0,0.00039204,30]
[423506600,1780174256000,-755.0,0.00039204,30]
[423506606,1780174256000,-755.0,0.00039204,30]
[423506603,1780174256000,-755.0,0.00039204,30]
[423506604,1780174256000,-755.0,0.00039204,30]
[423506601,1780174256000,-755.0,0.00039204,30]
[423506599,1780174256000,-755.0,0.00039204,30]
[423506614,1780174256000,-755.0,0.00039204,30]
[423506610,1780174256000,-755.0,0.00039204,30]
[423506627,1780174256000,-800.0,0.00039205,14]
[423506611,1780174256000,-755.0,0.00039204,30]
[423506616,1780174256000,-755.0,0.00039204,30]
[423506615,1780174256000,-755.0,0.00039204,30]
[423506617,1780174256000,-755.0,0.00039204,30]
[423506626,1780174256000,-800.0,0.00039205,14]
[423506618,1780174256000,-755.0,0.00039204,30]
[423506623,1780174256000,-759.0,0.00039204,30]
[423506621,1780174256000,-759.0,0.00039204,30]
[423506619,1780174256000,-755.0,0.00039204,30]
[423506625,1780174256000,-800.0,0.00039205,14]
[423506622,1780174256000,-759.0,0.00039204,30]
[423506620,1780174256000,-755.0,0.00039204,30]
[423506597,1780174256000,-755.0,0.00039204,30]
[423506608,1780174256000,-755.0,0.00039204,30]
[423506602,1780174256000,-755.0,0.00039204,30]
[423506581,1780174256000,-755.0,0.00039204,30]
[423506595,1780174256000,-755.0,0.00039204,30]
[423506567,1780174256000,-716.97946144,0.00039203,30]
[423506568,1780174256000,-200.0,0.00039203,30]
[423506576,1780174256000,-755.0,0.00039204,30]
[423506569,1780174256000,-254.47416035,0.00039203,30]
[423506572,1780174256000,-500.0,0.00039203,30]
[423506571,1780174256000,-151.0,0.00039203,30]
[423506578,1780174256000,-755.0,0.00039204,30]
[423506570,1780174256000,-7965.41053267,0.00039203,30]
[423506575,1780174256000,-151.0,0.00039203,30]
[423506573,1780174256000,-152.0,0.00039203,30]
[423506577,1780174256000,-755.0,0.00039204,30]
[423506574,1780174256000,-578.20924308,0.00039203,30]
[423506579,1780174256000,-755.0,0.00039204,30]
[423506598,1780174256000,-755.0,0.00039204,30]
[423506584,1780174256000,-755.0,0.00039204,30]
[423506582,1780174256000,-755.0,0.00039204,30]
[423506585,1780174256000,-755.0,0.00039204,30]
[423506580,1780174256000,-755.0,0.00039204,30]
[423506589,1780174256000,-755.0,0.00039204,30]
[423506590,1780174256000,-755.0,0.00039204,30]
[423506588,1780174256000,-755.0,0.00039204,30]
[423506586,1780174256000,-755.0,0.00039204,30]
[423506587,1780174256000,-755.0,0.00039204,30]
[423506591,1780174256000,-755.0,0.00039204,30]
[423506592,1780174256000,-755.0,0.00039204,30]
[423506593,1780174256000,-755.0,0.00039204,30]
[423506596,1780174256000,-755.0,0.00039204,30]
[423506594,1780174256000,-755.0,0.00039204,30]
[423506583,1780174256000,-755.0,0.00039204,30]
[423506624,1780174256000,-759.0,0.00039204,30]
[423506639,1780174256000,-449.63,0.00039211,120]
[423506631,1780174256000,-806.15912236,0.00039205,14]
[423506663,1780174256000,-500.0,0.00039246,30]
[423506664,1780174256000,-152.0,0.00039246,30]
[423506666,1780174256000,-557.5788265,0.00039246,30]
[423506669,1780174256000,-500.0,0.00039247,60]
[423506670,1780174256000,-800.0,0.00039247,60]
[423506673,1780174256000,-2110.0,0.00039247,2]
[423506672,1780174256000,-156.99644591,0.00039247,30]
[423506668,1780174256000,-151.0,0.00039246,30]
[423506671,1780174256000,-500.0,0.00039247,30]
[423506674,1780174256000,-253.66084151,0.00039252,2]
[423506667,1780174256000,-557.57882651,0.00039246,30]
[423506675,1780174256000,-500.0,0.00039257,7]
[423506676,1780174256000,-508.37158643,0.00039257,7]
[423506654,1780174256000,-168.3888056,0.00039246,30]
[423506677,1780174256000,-151.0,0.00039257,14]
[423506680,1780174256000,-151.0,0.00039257,14]
[423506690,1780174256000,-631.0,0.0003926,120]
[423506691,1780174256000,-156.0,0.0003926,120]
[423506679,1780174256000,-151.0,0.00039257,14]
[423506683,1780174256000,-152.0,0.0003926,120]
[423506686,1780174256000,-153.0,0.0003926,120]
[423506681,1780174256000,-151.0,0.00039257,14]
[423506684,1780174256000,-153.0,0.0003926,120]
[423506687,1780174256000,-250.0,0.0003926,7]
[423506685,1780174256000,-322.0,0.0003926,120]
[423506682,1780174256000,-170.948439,0.00039257,14]
[423506688,1780174256000,-250.0,0.0003926,7]
[423506628,1780174256000,-800.0,0.00039205,14]
[423506678,1780174256000,-151.0,0.00039257,14]
[423506658,1780174256000,-200.0,0.00039246,30]
[423506689,1780174256000,-156.0,0.0003926,120]
[423506661,1780174256000,-200.0,0.00039246,30]
[423506659,1780174256000,-168.38880563,0.00039246,30]
[423506632,1780174256000,-449.63,0.00039211,120]
[423506640,1780174256000,-449.63,0.00039211,120]
[423506633,1780174256000,-449.63,0.00039211,120]
[423506638,1780174256000,-449.63,0.00039211,120]
[423506635,1780174256000,-449.63,0.00039211,120]
[423506637,1780174256000,-449.63,0.00039211,120]
[423506641,1780174256000,-449.63,0.00039211,120]
[423506634,1780174256000,-449.63,0.00039211,120]
[423506636,1780174256000,-449.63,0.00039211,120]
[423506643,1780174256000,-449.63,0.00039211,120]
[423506648,1780174256000,-4039.14,0.00039214,2]
[423506642,1780174256000,-449.63,0.00039211,120]
[423506650,1780174256000,-185.05162314,0.0003924,120]
[423506630,1780174256000,-800.0,0.00039205,14]
[423506652,1780174256000,-70000.0,0.0003924,120]
[423506656,1780174256000,-178.42522448,0.00039246,30]
[423506662,1780174256000,-151.0,0.00039246,30]
[423506660,1780174256000,-7681.20591386,0.00039246,30]
[423506665,1780174256000,-244.34470556,0.00039246,30]
[423506655,1780174256000,-2939.04127938,0.00039246,30]
[423506657,1780174256000,-691.39774486,0.00039246,30]
[423506644,1780174256000,-449.63,0.00039211,120]
[423506645,1780174256000,-449.63,0.00039211,120]
[423506646,1780174256000,-449.63,0.00039211,120]
[423506651,1780174256000,-1000.0,0.0003924,120]
[423506647,1780174256000,-449.63,0.00039211,120]
[423506653,1780174256000,-666.04,0.00039243,120]
[423506649,1780174256000,-157.99773031,0.0003924,2]
[423506695,1780174257000,-327.26726876,0.00039289,70]
[423506693,1780174257000,-450.0,0.0003927,2]
[423506692,1780174257000,-1000.0,0.0003926,90]
[423506694,1780174257000,-30000.0,0.00039289,2]
[423506697,1780174257000,-50000.0,0.00039289,60]
[423506701,1780174257000,-50000.0,0.00039289,64]
[423506700,1780174257000,-50000.0,0.00039289,63]
[423506696,1780174257000,-4709.98491531,0.00039289,30]
[423506702,1780174257000,-42927.07933159,0.00039289,65]
[423506698,1780174257000,-50000.0,0.00039289,61]
[423506699,1780174257000,-50000.0,0.00039289,62]
[423506714,1780174258000,-500.0,0.00013698,2]
[423506713,1780174258000,-500.0,0.00013698,2]
[423506712,1780174258000,-500.0,0.00013698,2]
[423506710,1780174258000,-152.0,0.00011191,30]
[423506711,1780174258000,-150.0,0.00011588,2]
[423506708,1780174258000,-500.0,0.00013698,2]
[423506715,1780174258000,-500.0,0.00013698,2]
[423506707,1780174258000,-1319806.7578231,0.0003929,20]
[423506705,1780174258000,-344.45135437,0.0003929,2]
[423506706,1780174258000,-1999.35871376,0.0003929,120]
[423506704,1780174258000,-344.45135437,0.0003929,2]
[423506703,1780174258000,-7072.92066841,0.00039289,65]
[423506709,1780174258000,-513.0,0.0003929,20]
[423506718,1780174258000,-297.0,0.00031645,30]
[423506729,1780174258000,-151.0,0.00035616,7]
[423506716,1780174258000,-500.0,0.00013698,2]
[423506717,1780174258000,-152.0,0.00014683,2]
[423506731,1780174258000,-32164.87369937,0.0003929,20]
[423506727,1780174258000,-151.0,0.00035616,7]
[423506730,1780174258000,-86415.75568276,0.0003929,20]
[423506726,1780174258000,-12612.15701897,0.00027397,10]
[423506725,1780174258000,-500.0,0.00013698,2]
[423506728,1780174258000,-151.0,0.00035616,7]
[423506723,1780174258000,-93.4054796,0.00013698,2]
[423506722,1780174258000,-406.5945204,0.00013698,2]
[423506721,1780174258000,-6791.71205921,0.0003929,20]
[423506719,1780174258000,-151.0,0.00035616,7]
[423506720,1780174258000,-340.21310142,0.000371,30]
[423506724,1780174258000,-895.14298103,0.00027397,10]
[423506744,1780174259000,-323.28564272,0.00015567,2]
[423506747,1780174259000,-229.52,0.0002758,7]
[423506749,1780174259000,-229.52,0.00027641,2]
[423506750,1780174259000,-229.52,0.00027672,7]
[423506746,1780174259000,-134.95937912,0.0002755,2]
[423506743,1780174259000,-500.0,0.00015567,2]
[423506745,1780174259000,-94.56062088,0.0002755,2]
[423506741,1780174259000,-500.0,0.00015567,2]
[423506734,1780174259000,-275.23839503,0.00013698,2]
[423506740,1780174259000,-500.0,0.00015567,2]
[423506737,1780174259000,-420.25805487,0.00013698,2]
[423506732,1780174259000,-500.0,0.00013698,2]
[423506735,1780174259000,-437.66674487,0.00013698,2]
[423506738,1780174259000,-79.74194513,0.00013698,2]
[423506736,1780174259000,-62.33325513,0.00013698,2]
[423506733,1780174259000,-224.76160497,0.00013698,2]
[423506748,1780174259000,-229.52,0.00027611,30]
[423506742,1780174259000,-500.0,0.00015567,2]
[423506751,1780174259000,-216.72720067,0.00027702,30]
[423506739,1780174259000,-500.0,0.00014082,2]
[423506755,1780174259000,-297.0,0.00032645,30]
[423506768,1780174259000,-229.52,0.00027977,30]
[423506766,1780174259000,-229.52,0.00027916,2]
[423506771,1780174259000,-26784.42781143,0.0003929,20]
[423506769,1780174259000,-297.0,0.00034645,30]
[423506765,1780174259000,-229.52,0.00027885,30]
[423506767,1780174259000,-229.52,0.00027946,7]
[423506764,1780174259000,-229.52,0.00027855,7]
[423506770,1780174259000,-297.0,0.00035645,30]
[423506763,1780174259000,-229.52,0.00027824,2]
[423506753,1780174259000,-229.52,0.00027733,2]
[423506762,1780174259000,-229.52,0.00027794,30]
[423506758,1780174259000,-260.726892,0.00035616,7]
[423506759,1780174259000,-151.0,0.00035616,7]
[423506760,1780174259000,-16503.15075706,0.0003929,20]
[423506757,1780174259000,-151.0,0.00035616,7]
[423506752,1780174259000,-12.79279933,0.00027702,30]
[423506754,1780174259000,-484.319,0.00030125,2]
[423506756,1780174259000,-297.0,0.00033645,30]
[423506761,1780174259000,-229.52,0.00027763,7]
[423506773,1780174390000,-166.9,0.00011025,2]
[423506774,1780174420000,-166.9,0.0001031,2]
[423506776,1780174522000,-166.9,0.00010075,2]
[423506775,1780174522000,-166.9,0.00010075,2]
[423506779,1780174653000,-0.7,0.00010075,2]
[423506778,1780174653000,-166.2,0.00010075,2]
[423506781,1780174654000,230.10620377,0.0001,2]
[423506780,1780174654000,-166.9,0.00010075,2]
[423506782,1780174655000,-166.9,0.00010075,2]
[423506783,1780174656000,-166.9,0.00010075,2]
[423506785,1780174658000,-118.21639442,0.00010075,2]
[423506784,1780174658000,-48.68360558,0.00010075,2]
[423506787,1780174658000,-209.12966642,0.00010075,2]
[423506786,1780174658000,-41.78360558,0.00010075,2]
[423506788,1780174658000,-249.086728,0.00011524,2]
[423506792,1780174877000,2000.0,0.00027733,120]
[423506791,1780174877000,-173.1,0.00011524,2]
[423506790,1780174877000,-160.0,0.00010193,2]
[423506789,1780174877000,-500.0,0.00011524,2]
[423506794,1780174878000,-150.0,0.00010199,2]
[423506795,1780174878000,-33.1,0.00010299,2]
[423506793,1780174878000,-150.0,0.00010099,2]
[423506799,1780174879000,-282.3,0.00011524,2]
[423506796,1780174879000,-116.9,0.00010299,2]
[423506797,1780174879000,-216.2,0.00010399,2]
[423506798,1780174879000,-50.8,0.00010399,2]
[423506800,1780174880000,-160.0,0.0001031,2]
[423506801,1780174880000,-173.1,0.00011524,2]
[423506802,1780174881000,-333.1,0.00011524,2]
[423506805,1780174881000,-166.2,0.00010074,2]
[423506803,1780174881000,-300.0,0.00010074,2]
[423506804,1780174881000,-33.1,0.00010074,2]
[423506806,1780174882000,-166.2,0.00010074,2]
[423506807,1780174882000,-166.2,0.00010074,2]
[423506808,1780174883000,-166.2,0.00010074,2]
[423506811,1780174884000,-83.8,0.00010037,2]
[423506812,1780174884000,-82.4,0.00010064,2]
[423506810,1780174884000,1551.0,0.00025643,120]
[423506809,1780174884000,-166.2,0.00010037,2]
[423506813,1780174884000,-166.2,0.00010064,2]
[423506814,1780174885000,-1.4,0.00010064,2]
[423506815,1780174885000,-164.8,0.00010074,2]
[423506819,1780174885000,-150.0,0.00010074,2]
[423506816,1780174885000,-166.2,0.00010074,2]
[423506820,1780174885000,-300.0,0.00010074,2]
[423506821,1780174885000,-250.0,0.00011,2]
[423506822,1780174885000,-579.813272,0.00011082,2]
[423506817,1780174885000,-171.1,0.00010074,2]
[423506818,1780174885000,-300.0,0.00010074,2]
[423506827,1780174888000,152.0,0.00027682,120]
[423506826,1780174888000,-250.913272,0.00010073,2]
[423506824,1780174888000,-500.0,0.00010073,2]
[423506825,1780174888000,-500.0,0.00010073,2]
[423506823,1780174888000,-500.0,0.00010073,2]
[423506829,1780174889000,-500.0,0.00010073,2]
[423506828,1780174889000,-249.086728,0.00010073,2]
[423506830,1780174889000,-500.0,0.00010073,2]
[423506831,1780174889000,-500.0,0.00010073,2]
[423506834,1780174889000,-477.52592097,0.00010073,2]
[423506836,1780174889000,-275.21389503,0.00010073,2]
[423506835,1780174889000,-500.0,0.00010073,2]
[423506833,1780174889000,-498.173456,0.00010073,2]
[423506832,1780174889000,-1.826544,0.00010073,2]
[423506837,1780174890000,-1100.186728,0.00011082,2]
[423506839,1780174890000,-152.0,0.00011191,30]
[423506838,1780174890000,-255.0,0.00011082,2]
[423506840,1780174890000,-243.726544,0.00011524,2]
[423506842,1780174891000,-1705.326544,0.00011624,2]
[423506841,1780174891000,-45.586728,0.00011524,2]
[423506844,1780174892000,-215.58360558,0.00010073,2]
[423506843,1780174892000,-300.0,0.00010072,2]
[423506845,1780174892000,-420.0,0.00011079,2]
[423506847,1780174892000,-1750.913272,0.00011624,2]
[423506850,1780174892000,-435.48275442,0.0001219,2]
[423506849,1780174892000,-587.0,0.00012186,2]
[423506848,1780174892000,-728.43051758,0.00011624,2]
[423506846,1780174892000,-815.32966642,0.00011624,2]
[423506857,1780174893000,-1164.58248507,0.00013676,2]
[423506856,1780174893000,-586.33078693,0.00012876,2]
[423506855,1780174893000,178.28119579,9.273e-05,2]
[423506854,1780174893000,-550.913272,0.00013676,2]
[423506853,1780174893000,-1200.0,0.00010072,2]
[423506852,1780174893000,-506.39602642,0.00013403,2]
[423506851,1780174893000,-1244.51724558,0.0001219,2]
[423506858,1780174894000,-1750.913272,0.00013215,2]
[423506860,1780174894000,-297.476728,0.00013215,2]
[423506859,1780174894000,-200.0,0.00012537,2]
[423506861,1780174894000,-1253.436544,0.00013676,2]
[423506862,1780174895000,-1503.56769893,0.00013676,2]
[423506863,1780174895000,-247.34557307,0.00013697,2]
[423506864,1780174919000,287.08711489,0.0001,2]
[423506865,1780174933000,498.82270915,9.972e-05,2]
[423506866,1780175261000,332.54847276,9.97e-05,2]
[423506886,1780175431000,-500.0,0.0001007,2]
[423506896,1780175431000,-500.0,0.0001007,2]
[423506900,1780175431000,-500.0,0.0001007,2]
[423506887,1780175431000,-500.0,0.0001007,2]
[423506891,1780175431000,-500.0,0.0001007,2]
[423506884,1780175431000,-500.0,0.00010069,2]
[423506885,1780175431000,-500.0,0.00010069,2]
[423506883,1780175431000,-500.0,0.00010069,2]
[423506874,1780175431000,-1200.0,0.00010068,2]
[423506882,1780175431000,-167.37977558,0.00010069,2]
[423506881,1780175431000,-500.0,0.00010069,2]
[423506888,1780175431000,-500.0,0.0001007,2]
[423506879,1780175431000,-224.93626761,0.00010069,2]
[423506876,1780175431000,-150.0,0.00010069,2]
[423506877,1780175431000,-500.0,0.00010069,2]
[423506878,1780175431000,-500.0,0.00010069,2]
[423506880,1780175431000,-44.49214957,0.00010069,2]
[423506890,1780175431000,-500.0,0.0001007,2]
[423506889,1780175431000,-500.0,0.0001007,2]
[423506894,1780175431000,-500.0,0.0001007,2]
[423506910,1780175431000,-500.0,0.0001007,2]
[423506916,1780175431000,-500.0,0.0001007,2]
[423506929,1780175431000,-500.0,0.0001007,2]
[423506921,1780175431000,-500.0,0.0001007,2]
[423506893,1780175431000,-500.0,0.0001007,2]
[423506927,1780175431000,-500.0,0.0001007,2]
[423506919,1780175431000,-500.0,0.0001007,2]
[423506931,1780175431000,-500.0,0.0001007,2]
[423506933,1780175431000,-500.0,0.0001007,2]
[423506914,1780175431000,-297.70767092,0.0001007,2]
[423506908,1780175431000,-500.0,0.0001007,2]
[423506912,1780175431000,-500.0,0.0001007,2]
[423506925,1780175431000,-500.0,0.0001007,2]
[423506923,1780175431000,-500.0,0.0001007,2]
[423506904,1780175431000,-500.0,0.0001007,2]
[423506902,1780175431000,-500.0,0.0001007,2]
[423506906,1780175431000,-500.0,0.0001007,2]
[423506892,1780175431000,-500.0,0.0001007,2]
[423506898,1780175431000,-500.0,0.0001007,2]
[423507016,1780175432000,-500.0,0.00012491,2]
[423507012,1780175432000,-433.0,0.00012184,2]
[423507014,1780175432000,-188.79,0.00012476,2]
[423507025,1780175432000,-500.0,0.0001251,2]
[423507033,1780175432000,-188.79,0.00012753,2]
[423507007,1780175432000,-691.12999525,0.00012183,2]
[423507005,1780175432000,-6280.0,0.00012029,2]
[423506992,1780175432000,-39494.6780459,0.00011675,2]
[423506990,1780175432000,-233.2055193,0.00011675,2]
[423506988,1780175432000,-6483.2882208,0.00011675,2]
[423507027,1780175432000,-188.79,0.00012546,2]
[423506994,1780175432000,-30318.3069035,0.00011675,2]
[423507029,1780175432000,-188.79,0.00012615,2]
[423507052,1780175432000,-166.35,0.00013056,2]
[423507018,1780175432000,-420.4735084,0.00012491,2]
[423507022,1780175432000,-4336.71533063,0.00012492,2]
[423507035,1780175432000,-278.59,0.00012787,2]
[423507037,1780175432000,-2148.51,0.00012801,2]
[423507020,1780175432000,-795.28466937,0.00012492,2]
[423507045,1780175432000,-150.0,0.00012929,2]
[423507056,1780175432000,-832.0,0.0001316,2]
[423507051,1780175432000,-163.29,0.00013046,2]
[423507058,1780175432000,-209.55,0.00013164,2]
[423507041,1780175432000,-188.79,0.00012891,2]
[423507039,1780175432000,-188.79,0.00012822,2]
[423507001,1780175432000,-163.29,0.0001186,2]
[423507031,1780175432000,-188.79,0.00012684,2]
[423507010,1780175432000,-1659.87000475,0.00012183,2]
[423506935,1780175432000,-500.0,0.0001007,2]
[423507003,1780175432000,-2000.0,0.00011894,2]
[423506945,1780175432000,-500.0,0.0001007,2]
[423506954,1780175432000,-169.46,0.00010071,2]
[423506937,1780175432000,-500.0,0.0001007,2]
[423506951,1780175432000,-600.00000001,0.0001007,2]
[423506941,1780175432000,-500.0,0.0001007,2]
[423506949,1780175432000,-500.0,0.0001007,2]
[423506947,1780175432000,-500.0,0.0001007,2]
[423506943,1780175432000,-500.0,0.0001007,2]
[423506958,1780175432000,-332.54847276,0.00010773,2]
[423506956,1780175432000,-215.58360558,0.00010501,2]
[423506960,1780175432000,-1680.0,0.00011075,2]
[423506964,1780175432000,-255.0,0.00011076,2]
[423507000,1780175432000,-8608.81610317,0.000117,2]
[423506962,1780175432000,-156.6895802,0.00011076,2]
[423506974,1780175432000,-1048.69259149,0.00011674,2]
[423506976,1780175432000,-500.0,0.00011674,2]
[423506978,1780175432000,-644.33145588,0.00011674,2]
[423506972,1780175432000,-29437.0306,0.00011575,2]
[423506984,1780175432000,-300.0620168,0.00011674,2]
[423506970,1780175432000,-4175.8268,0.00011575,2]
[423506966,1780175432000,-500.0,0.00011424,2]
[423506968,1780175432000,-332.54847276,0.00011575,2]
[423506982,1780175432000,-500.0,0.00011674,2]
[423506998,1780175432000,-832.0,0.00011697,2]
[423506996,1780175432000,-36985.987319,0.00011675,2]
[423506986,1780175432000,-244.24348205,0.00011674,2]
[423506980,1780175432000,-500.0,0.00011674,2]
[423507062,1780175432000,-2702.35,0.00013214,2]
[423507183,1780175432000,-500.0,0.00013698,2]
[423507043,1780175432000,-1018.81,0.00012896,2]
[423507124,1780175432000,-500.0,0.00013698,2]
[423507120,1780175432000,-500.0,0.00013698,2]
[423507129,1780175432000,-500.0,0.00013698,2]
[423507142,1780175432000,-500.0,0.00013698,2]
[423507137,1780175432000,-500.0,0.00013698,2]
[423507135,1780175432000,-500.0,0.00013698,2]
[423507133,1780175432000,-500.0,0.00013698,2]
[423507131,1780175432000,-500.0,0.00013698,2]
[423507128,1780175432000,-500.0,0.00013698,2]
[423507139,1780175432000,-500.0,0.00013698,2]
[423507122,1780175432000,-500.0,0.00013698,2]
[423507143,1780175432000,-500.0,0.00013698,2]
[423507118,1780175432000,-500.0,0.00013698,2]
[423507146,1780175432000,-500.0,0.00013698,2]
[423507048,1780175432000,-188.79,0.00013029,2]
[423507152,1780175432000,-500.0,0.00013698,2]
[423507163,1780175432000,-500.0,0.00013698,2]
[423507165,1780175432000,-500.0,0.00013698,2]
[423507177,1780175432000,-500.0,0.00013698,2]
[423507167,1780175432000,-500.0,0.00013698,2]
[423507173,1780175432000,-500.0,0.00013698,2]
[423507171,1780175432000,-500.0,0.00013698,2]
[423507175,1780175432000,-500.0,0.00013698,2]
[423507179,1780175432000,-500.0,0.00013698,2]
[423507169,1780175432000,-500.0,0.00013698,2]
[423507182,1780175432000,-500.0,0.00013698,2]
[423507148,1780175432000,-456.79764672,0.00013698,2]
[423507126,1780175432000,-500.0,0.00013698,2]
[423507150,1780175432000,-500.0,0.00013698,2]
[423507114,1780175432000,-500.0,0.00013698,2]
[423507106,1780175432000,-500.0,0.00013698,2]
[423507060,1780175432000,-188.79,0.00013168,2]
[423507054,1780175432000,-188.79,0.00013099,2]
[423507047,1780175432000,-188.79,0.0001296,2]
[423507075,1780175432000,-512.0,0.00013402,2]
[423507081,1780175432000,-152.0,0.00013532,2]
[423507067,1780175432000,-188.79,0.00013306,2]
[423507077,1780175432000,-188.79,0.00013444,2]
[423507083,1780175432000,-188.79,0.00013582,2]
[423507080,1780175432000,-188.79,0.00013513,2]
[423507065,1780175432000,-188.79,0.00013237,2]
[423507068,1780175432000,-188.79,0.00013375,2]
[423507090,1780175432000,-2500.0,0.00013599,2]
[423507088,1780175432000,-1907.18772857,0.00013599,2]
[423507085,1780175432000,-3239.03867143,0.00013599,2]
[423507116,1780175432000,-500.0,0.00013698,2]
[423507073,1780175432000,-256.0,0.00013401,2]
[423507102,1780175432000,-188.79,0.00013652,2]
[423507096,1780175432000,-445.50024672,0.00013599,2]
[423507110,1780175432000,-500.0,0.00013698,2]
[423507094,1780175432000,-12676.96198817,0.00013599,2]
[423507104,1780175432000,-500.0,0.00013698,2]
[423507099,1780175432000,-1423.98276549,0.00013599,2]
[423507108,1780175432000,-500.0,0.00013698,2]
[423507100,1780175432000,-350.13640107,0.00013616,2]